bitfinex-derivatives/quotes_ETHF0:USTF0_20251005
["timestamp","ask_amount","ask_price","bid_price","bid_amount"]
[1759707982926,0.3358,4519.5,4519.4,3.51252335]
[1759707983126,0.3358,4519.5,4519.4,1.92339726]
[1759707983527,0.3358,4519.5,4519.4,3.51252335]
[1759707983928,0.3358,4519.5,4519.4,1.92339726]
[1759707984327,0.3358,4519.5,4519.4,3.51252335]
[1759707985832,1.17016,4519.9,4519.8,0.7623]
[1759707986131,1.17016,4519.9,4519.8,0.9833]
[1759707987131,0.3358,4519.9,4519.8,1.38146]
[1759707987338,0.00219302,4520.0,4519.9,0.7623]
[1759707991636,0.89809302,4520.0,4519.9,0.7623]
[1759707991941,0.89809302,4520.0,4519.9,2.01915513]
[1759707992137,0.89809302,4520.0,4519.9,2.24015513]
[1759707992636,0.89809302,4520.0,4519.9,0.6523]
[1759707992837,0.89809302,4520.0,4519.9,0.4393]
[1759707993041,0.7774,4519.8,4519.5,1.58785513]
[1759707993343,1.17557,4519.7,4519.6,1.80885513]
[1759707994742,0.7774,4519.7,4519.6,2.24995513]
[1759707994946,0.7774,4519.7,4519.6,2.59125513]
[1759707995441,0.3364,4519.9,4519.8,0.39815]
[1759707995748,0.3364,4519.9,4519.8,1.40155]
[1759707996447,0.00219302,4520.0,4519.8,1.06026]
[1759707996641,0.00219302,4520.0,4519.9,0.7824]
[1759707998849,0.00219302,4520.0,4519.9,1.72249726]
[1759707999050,0.00219302,4520.0,4519.9,3.31132662]
[1759708001141,0.3364,4521.1,4521.0,0.2179]
[1759708001446,0.3364,4521.1,4521.0,1.0034]
[1759708001647,0.3364,4521.1,4521.0,1.17944407]
[1759708001849,0.3364,4521.1,4521.0,1.0034]
[1759708002050,0.00213402,4521.1,4521.0,1.0034]
[1759708002243,0.00213402,4521.1,4521.0,1.0785]
[1759708002448,0.33853402,4521.1,4521.0,1.0034]
[1759708002649,0.33853402,4521.1,4521.0,1.18417578]
[1759708002850,0.56383402,4521.1,4521.0,1.0034]
[1759708004753,0.00213402,4521.1,4521.0,1.0034]
[1759708005054,0.00213402,4521.1,4521.0,1.0785]
[1759708005754,0.33853402,4521.1,4521.0,1.0785]
[1759708006656,0.56383402,4521.1,4521.0,0.7824]
[1759708006855,0.77953402,4521.1,4521.0,1.0034]
[1759708007450,0.00213402,4521.1,4521.0,1.0783]
[1759708007647,0.32113402,4521.1,4521.0,1.0783]
[1759708007853,0.53553402,4521.1,4521.0,1.0034]
[1759708009053,0.53553402,4521.1,4520.5,3.9739]
[1759708009054,0.755,4520.6,4520.5,3.9739]
[1759708009259,0.755,4520.6,4520.5,4.1949]
[1759708010262,0.5334,4520.6,4520.5,5.78290743]
[1759708010459,0.5334,4520.6,4520.5,4.1949]
[1759708011269,0.5334,4520.6,4520.5,5.78290743]
[1759708012367,0.39808,4520.8,4520.7,0.4465]
[1759708012562,0.39808,4520.8,4520.7,1.92719726]
[1759708013366,0.71708,4520.8,4520.7,1.92719726]
[1759708013571,0.93148,4520.8,4520.7,0.9871]
[1759708013773,1.15308,4520.8,4520.7,0.4406]
[1759708015874,1.15308,4520.8,4520.7,0.9871]
[1759708016570,0.93148,4520.8,4520.7,0.9871]
[1759708016770,0.71708,4520.8,4520.7,0.9871]
[1759708017274,0.39808,4520.8,4520.7,0.9871]
[1759708017478,0.71708,4520.8,4520.7,0.9871]
[1759708018577,0.93148,4520.8,4520.7,0.9871]
[1759708019077,1.15308,4520.8,4520.7,0.6675]
[1759708019479,1.15308,4520.8,4520.7,0.9871]
[1759708020079,1.15308,4520.8,4520.7,0.6675]
[1759708020783,1.15308,4520.8,4520.7,0.4406]
[1759708021279,1.15308,4520.8,4520.3,1.27963566]
[1759708021280,0.39811,4520.4,4520.3,1.58800743]
[1759708021479,0.83416,4519.8,4519.7,1.58800743]
[1759708021678,1.15316,4519.8,4519.7,1.80900743]
[1759708021878,1.15316,4519.8,4519.7,2.02860743]
[1759708026786,1.15316,4519.8,4519.7,2.25550743]
[1759708028191,1.15316,4519.8,4519.7,3.03837138]
[1759708029289,0.39815,4519.9,4519.7,3.03837138]
[1759708029482,0.39815,4519.9,4519.8,0.6498]
[1759708029686,0.71715,4519.9,4519.8,0.6498]
[1759708029986,0.93155,4519.9,4519.8,0.6498]
[1759708030389,0.71715,4519.9,4519.8,0.6498]
[1759708031097,0.71715,4519.9,4519.8,2.23780743]
[1759708031586,0.71715,4519.9,4519.8,0.6498]
[1759708031787,0.71715,4519.9,4519.8,2.23780743]
[1759708032091,0.71715,4519.9,4519.8,0.6498]
[1759708032886,0.93155,4519.9,4519.8,0.6498]
[1759708036696,0.93155,4519.9,4519.8,0.4465]
[1759708036896,1.15315,4519.9,4519.8,0.4465]
[1759708037493,1.15315,4519.9,4519.8,0.6494]
[1759708038901,0.319,4519.9,4519.8,2.23740743]
[1759708039107,1.2697,4520.5,4520.4,0.4383]
[1759708039399,1.2697,4520.5,4520.4,1.44216395]
[1759708045204,0.8716,4520.5,4520.4,1.44216395]
[1759708045401,0.6624,4520.5,4520.4,1.64506395]
[1759708045998,0.8716,4520.5,4520.4,1.44216395]
[1759708047306,0.8716,4520.5,4520.4,3.02945458]
[1759708047905,0.8716,4520.5,4520.4,1.44216395]
[1759708048097,0.8716,4520.5,4520.4,3.02945458]
[1759708052008,0.8716,4520.5,4520.4,1.80829063]
[1759708054499,0.8716,4520.5,4520.4,2.02279063]
[1759708064313,0.8716,4520.5,4520.4,0.4355]
[1759708064714,0.8716,4520.5,4520.4,2.02500806]
[1759708064910,0.8716,4520.5,4520.4,0.4355]
[1759708065112,0.8716,4520.5,4520.4,2.02502672]
[1759708065311,0.8716,4520.5,4520.4,0.4355]
[1759708069312,0.8716,4520.5,4520.4,0.6558]
[1759708069518,0.3209,4520.5,4520.4,2.04017395]
[1759708069713,0.72849,4520.6,4520.5,0.6329]
[1759708071010,0.94759,4520.6,4520.5,0.6329]
[1759708075225,1.16509,4520.6,4520.5,0.4295]
[1759708076522,1.16509,4520.6,4520.4,0.221]
[1759708076723,0.9036,4520.5,4520.4,0.221]
[1759708077120,0.9036,4520.5,4520.4,0.4456]
[1759708081418,0.9036,4520.5,4520.1,1.97807882]
[1759708081419,0.6845,4520.5,4520.1,1.97807882]
[1759708081626,0.39815,4520.0,4519.9,1.97807882]
[1759708081827,0.39815,4520.0,4519.9,0.221]
[1759708081828,0.97135,4520.0,4519.9,0.221]
[1759708082024,0.767,4519.9,4519.7,1.97807882]
[1759708082229,0.39818,4519.6,4519.4,1.97807882]
[1759708082440,0.9036,4519.5,4519.4,2.20267882]
[1759708082732,0.9036,4519.5,4519.4,2.42367882]
[1759708083232,0.9036,4519.5,4519.4,0.4456]
[1759708087033,0.9036,4519.5,4519.3,3.2078]
[1759708087034,0.9477,4519.4,4519.3,3.2078]
[1759708087228,0.9477,4519.4,4519.2,1.97807882]
[1759708087229,0.767,4519.3,4519.2,1.97807882]
[1759708087429,0.767,4518.9,4518.8,5.18587882]
[1759708087629,0.767,4518.9,4518.8,3.6534]
[1759708087828,0.767,4518.9,4518.8,4.23709295]
[1759708088129,0.5495,4518.9,4518.8,4.23709295]
[1759708090234,0.767,4518.9,4518.8,4.03369295]
[1759708091337,0.767,4518.9,4518.8,0.39639295]
[1759708091532,0.39827,4518.6,4518.5,1.58625825]
[1759708091734,1.16527,4518.6,4518.5,1.80725825]
[1759708092237,1.16527,4518.6,4518.5,0.221]
[1759708092627,0.767,4518.6,4518.5,0.221]
[1759708092832,0.767,4518.6,4518.5,0.4456]
[1759708094140,0.3304,4518.6,4518.5,2.44015825]
[1759708095231,0.3304,4518.6,4518.5,0.8539]
[1759708097538,0.5495,4518.6,4518.5,0.8539]
[1759708099238,0.7696,4518.6,4518.5,0.6505]
[1759708100333,0.7696,4518.6,4518.5,0.221]
[1759708100637,0.7525,4518.4,4518.3,3.38356376]
[1759708100838,0.7525,4518.4,4518.3,3.60456376]
[1759708101144,0.7525,4518.4,4518.3,3.4288]
[1759708103942,0.7525,4518.4,4518.3,3.6534]
[1759708106043,0.7525,4518.4,4518.3,4.0748]
[1759708106241,0.5324,4518.4,4518.3,5.66105825]
[1759708107950,0.5324,4518.4,4518.3,5.45745825]
[1759708108351,0.5324,4518.4,4518.3,3.8712]
[1759708108544,0.7525,4518.4,4518.3,5.45722288]
[1759708108743,0.7525,4518.4,4518.3,5.23942288]
[1759708108944,0.7525,4518.4,4518.3,4.79382288]
[1759708109144,0.7525,4518.4,4518.3,5.01482288]
[1759708109344,0.7525,4518.4,4518.3,3.4288]
[1759708109543,0.7525,4518.4,4518.3,0.221]
[1759708110054,0.7525,4518.4,4518.3,0.4456]
[1759708110353,0.7525,4518.4,4518.3,0.2246]
[1759708110550,0.7525,4518.4,4518.3,0.4456]
[1759708117358,0.7525,4518.4,4518.3,0.221]
[1759708117854,0.39831,4518.1,4518.0,0.221]
[1759708118162,1.17971,4518.1,4518.0,1.81091577]
[1759708118360,1.17971,4518.1,4518.0,0.221]
[1759708121056,4.38751,4518.1,4518.0,0.221]
[1759708121559,0.5789,4518.0,4517.9,0.02473612]
[1759708121759,0.9176,4518.0,4517.9,0.24573612]
[1759708126559,0.9176,4518.0,4517.9,0.46453612]
[1759708129469,0.9176,4518.0,4517.9,0.24573612]
[1759708131274,0.9176,4518.0,4517.9,0.02473612]
[1759708131472,0.9176,4518.0,4517.9,0.24573612]
[1759708138377,0.9176,4518.0,4517.9,0.02473612]
[1759708138574,0.9176,4518.0,4517.9,0.24573612]
[1759708138774,0.9176,4518.0,4517.9,0.02473612]
[1759708138975,0.9176,4518.0,4517.9,0.24573612]
[1759708139675,0.9176,4518.0,4517.9,0.45153612]
[1759708142376,0.9176,4518.0,4517.9,0.24573612]
[1759708144977,0.9176,4518.0,4517.9,0.45153612]
[1759708145173,0.3387,4518.0,4517.9,1.64511172]
[1759708149083,0.3387,4518.0,4517.9,3.62319054]
[1759708151480,0.3387,4518.0,4517.9,1.64511172]
[1759708151883,0.465,4518.0,4517.9,1.64511172]
[1759708153979,0.465,4518.0,4517.9,0.86113612]
[1759708154286,0.8927,4518.0,4517.9,1.44201172]
[1759708155085,0.683,4518.0,4517.9,1.64511172]
[1759708156585,0.1301,4518.5,4518.3,0.39829]
[1759708156778,0.5643,4519.0,4518.9,0.2058]
[1759708157082,0.96253,4519.0,4518.9,0.4268]
[1759708157284,1.30243,4519.0,4518.9,0.4268]
[1759708157581,0.9042,4519.0,4518.9,0.6333]
[1759708157784,0.3484,4519.5,4519.4,0.2186]
[1759708157987,0.9059,4519.5,4519.4,0.6569]
[1759708159281,0.3363,4519.5,4519.4,0.8606]
[1759708161786,0.6781,4519.5,4519.4,0.6569]
[1759708162083,0.83121,4519.3,4519.1,1.59097122]
[1759708162282,0.7693,4519.2,4519.0,4.79877122]
[1759708162484,0.7693,4519.2,4519.1,0.221]
[1759708172497,0.563,4519.0,4518.9,0.2186]
[1759708172798,0.8993,4519.0,4518.9,0.4396]
[1759708173300,0.8993,4519.0,4518.9,2.03057122]
[1759708178301,0.8993,4519.0,4517.9,0.02473612]
[1759708178302,1.28372,4518.0,4517.9,0.02473612]
[1759708178601,1.28372,4518.0,4517.9,0.24573612]
[1759708178799,1.28372,4518.0,4517.9,0.02473612]
[1759708178999,1.28372,4518.0,4517.9,0.24573612]
[1759708180098,1.28372,4518.0,4517.9,0.02473612]
[1759708180299,1.28372,4518.0,4517.9,0.24573612]
[1759708180904,1.28372,4518.0,4517.9,0.02473612]
[1759708181205,1.28372,4518.0,4517.9,0.24573612]
[1759708187911,1.28372,4518.0,4517.9,0.46723612]
[1759708188709,0.8854,4518.0,4517.9,0.46723612]
[1759708190817,0.8854,4518.0,4517.9,0.24573612]
[1759708191207,0.8854,4518.0,4517.9,0.02473612]
[1759708191507,0.8854,4518.0,4517.9,0.24573612]
[1759708195920,0.8854,4518.0,4517.9,0.02473612]
[1759708199520,0.8854,4518.0,4517.9,0.86786612]
[1759708199726,0.8854,4518.0,4517.9,4.27946612]
[1759708200819,0.8854,4518.0,4517.9,3.88113612]
[1759708201019,0.8854,4518.0,4517.9,3.67733612]
[1759708201332,0.8854,4518.0,4517.9,0.02473612]
[1759708201717,0.8854,4518.0,4517.9,0.24573612]
[1759708202828,0.8854,4518.0,4517.9,0.02473612]
[1759708203024,0.8854,4518.0,4517.9,0.24573612]
[1759708205724,0.8854,4518.0,4517.9,0.02473612]
[1759708207429,0.8854,4518.0,4517.9,1.61135219]
[1759708207829,0.8854,4518.0,4517.9,0.02473612]
[1759708220536,0.8854,4518.0,4517.9,0.46633612]
[1759708222535,0.8854,4518.0,4517.9,0.02473612]
[1759708222732,0.8854,4518.0,4517.9,0.24573612]
[1759708229843,0.8854,4518.0,4517.9,0.68733612]
[1759708236851,0.8854,4518.0,4517.9,0.02473612]
[1759708259974,0.8854,4518.0,4517.9,0.24163612]
[1759708262174,0.8854,4518.0,4517.9,0.02473612]
[1759708265574,0.8854,4518.0,4517.9,0.24163612]
[1759708265777,1.28372,4518.0,4517.9,0.24163612]
[1759708266080,1.28372,4518.0,4517.9,0.02473612]
[1759708268983,0.8854,4518.0,4517.9,0.02473612]
[1759708271284,1.66932416,4518.0,4517.9,0.02473612]
[1759708271484,1.66932416,4518.0,4517.9,6.12e-06]
[1759708271680,1.18016,4517.6,4517.5,0.221]
[1759708271986,1.18017,4517.4,4517.3,1.81422973]
[1759708272189,1.18017,4517.4,4517.3,1.59322973]
[1759708272594,1.18260043,4517.4,4517.3,1.59550362]
[1759708279205,1.18260043,4517.4,4517.3,0.00227389]
[1759708315038,1.96652459,4517.4,4517.3,0.00227389]
[1759708316438,1.56815459,4517.4,4516.8,1.59322973]
[1759708316741,0.95825,4516.5,4516.3,1.59322973]
[1759708316938,0.83187,4516.3,4516.1,1.59322973]
[1759708317238,1.16409,4516.2,4516.0,1.59322973]
[1759708317437,0.7656,4516.1,4516.0,1.81102973]
[1759708317640,0.7656,4516.1,4516.0,1.81345153]
[1759708317938,0.7656,4516.1,4516.0,2.03095153]
[1759708318341,0.7656,4516.1,4516.0,0.6587218]
[1759708318739,0.7656,4516.1,4516.0,0.8619218]
[1759708318940,0.5555,4516.1,4516.0,1.64584596]
[1759708319635,0.3322,4516.1,4516.0,1.64584596]
[1759708322541,0.5555,4516.1,4516.0,1.64584596]
[1759708322741,0.7656,4516.1,4516.0,1.44264596]
[1759708324747,0.7656,4516.1,4516.0,1.22514596]
[1759708324947,0.7656,4516.1,4516.0,0.4412218]
[1759708328148,0.7656,4516.1,4516.0,0.4377218]
[1759708328336,0.7656,4516.1,4516.0,0.6587218]
[1759708329447,0.7656,4516.1,4516.0,0.4412218]
[1759708329649,0.7656,4516.1,4516.0,0.2234218]
[1759708330143,0.7656,4516.1,4516.0,0.4412218]
[1759708330348,0.7656,4516.1,4516.0,0.6587218]
[1759708332748,0.7656,4516.1,4516.0,0.8619218]
[1759708334248,0.3322,4516.1,4516.0,0.8619218]
[1759708336253,0.5555,4516.1,4516.0,0.6587218]
[1759708336550,0.7656,4516.1,4516.0,0.6587218]
[1759708338057,0.7656,4516.1,4516.0,0.8617218]
[1759708338757,0.5555,4516.1,4516.0,0.8617218]
[1759708338950,0.3262,4516.5,4516.4,0.6455]
[1759708339259,0.3262,4516.5,4516.4,0.8665]
[1759708339554,0.4526,4516.5,4516.4,0.8665]
[1759708340854,0.3262,4516.5,4516.4,0.8665]
[1759708341165,0.6801,4517.5,4517.4,0.4425]
[1759708341350,0.8949,4517.5,4517.4,0.6635]
[1759708342158,0.89654655,4517.5,4517.4,0.6635]
[1759708344063,0.89654655,4517.5,4517.4,0.8665]
[1759708344455,0.89654655,4517.5,4517.4,0.6635]
[1759708345352,0.89654655,4517.5,4517.4,0.4445]
[1759708346863,0.89654655,4517.5,4517.4,0.8665]
[1759708347249,0.89654655,4517.5,4517.4,0.6635]
[1759708354557,0.1264,4518.5,4517.4,0.6635]
[1759708354558,0.5621,4518.5,4518.4,0.7528]
[1759708354752,0.5621,4518.5,4518.4,0.9738]
[1759708355352,0.56481485,4518.5,4518.4,0.9738]
[1759708356066,0.56481485,4518.5,4518.4,1.1506791]
[1759708356559,0.90221485,4518.5,4518.4,1.1506791]
[1759708356962,0.00271485,4518.5,4518.4,1.5489691]
[1759708357161,0.56041485,4518.5,4518.4,1.1506791]
[1759708357361,0.90561485,4518.5,4518.4,0.6146791]
[1759708357569,0.90561485,4518.5,4518.0,3.38437876]
[1759708357570,0.4357,4518.1,4518.0,3.38437876]
[1759708357869,0.7731,4518.1,4518.0,3.60537876]
[1759708358258,0.7731,4518.1,4518.0,3.82217876]
[1759708359963,0.7731,4518.1,4518.0,4.35817876]
[1759708360861,0.5577,4518.1,4518.0,4.35817876]
[1759708362871,0.7731,4518.1,4518.0,4.35817876]
[1759708363671,0.5577,4518.1,4518.0,4.35817876]
[1759708363969,0.34011485,4518.5,4518.4,0.7528]
[1759708364178,0.34011485,4518.5,4518.4,0.9748]
[1759708364865,0.90561485,4518.5,4518.4,0.5298]
[1759708365068,0.90561485,4518.5,4518.4,0.222]
[1759708365372,0.90561485,4518.5,4518.4,0.4388]
[1759708366063,0.90561485,4518.5,4518.4,0.6618]
[1759708366268,0.90561485,4518.5,4518.4,0.9748]
[1759708366673,0.77581485,4518.5,4518.4,0.9748]
[1759708367473,0.90561485,4518.5,4518.4,0.9748]
[1759708368567,0.90561485,4518.5,4518.4,0.6618]
[1759708368766,0.3251,4518.4,4518.0,4.97149744]
[1759708368968,0.4386,4518.2,4518.1,0.222]
[1759708369173,0.7637,4518.2,4518.1,0.222]
[1759708369362,0.7637,4518.2,4518.1,0.4417]
[1759708370368,0.4386,4518.2,4518.0,3.2078]
[1759708370676,0.7637,4518.1,4518.0,3.2078]
[1759708370975,0.7637,4518.1,4518.0,3.6495]
[1759708371275,0.7637,4518.1,4518.0,4.1767]
[1759708378775,0.5391,4518.1,4518.0,4.1767]
[1759708382083,0.7637,4518.1,4518.0,4.1767]
[1759708383681,0.7637,4518.1,4518.0,3.2078]
[1759708383881,0.3251,4517.7,4517.6,1.58711868]
[1759708384180,0.4386,4517.1,4517.0,1.58711868]
[1759708384379,0.3251,4517.2,4516.7,0.3153]
[1759708384380,0.8997,4517.0,4516.7,1.58711868]
[1759708384688,3.9715,4516.8,4516.7,0.222]
[1759708384977,0.7637,4516.4,4516.3,0.92005991]
[1759708385173,0.7637,4516.4,4516.3,0.9689]
[1759708385573,0.7637,4516.4,4516.3,0.7469]
[1759708385980,0.7637,4516.4,4516.3,0.9689]
[1759708389782,0.92046366,4517.0,4516.4,0.3153]
[1759708389984,0.8997,4517.0,4516.9,0.2197]
[1759708390173,0.4386,4516.7,4516.6,0.535]
[1759708390483,0.7637,4516.7,4516.6,0.7469]
[1759708393387,0.7637,4516.7,4516.6,0.2197]
[1759708393682,0.7637,4516.6,4516.5,0.222]
[1759708393883,0.7637,4516.6,4516.5,0.4417]
[1759708394080,0.7637,4516.6,4516.5,0.757]
[1759708396182,0.7637,4516.6,4516.5,0.4417]
[1759708397778,0.7637,4516.6,4516.5,0.222]
[1759708398280,0.129,4516.5,4516.1,0.3087]
[1759708398487,0.129,4516.5,4516.0,1.36059889]
[1759708398488,1.15129,4516.1,4516.0,0.0024218]
[1759708408581,0.7528,4516.1,4516.0,0.7423218]
[1759708408786,1.15129,4516.1,4516.0,0.0024218]
[1759708415788,1.15129,4516.1,4516.0,0.2287218]
[1759708416496,1.15129,4516.1,4516.0,0.0024218]
[1759708420100,0.7528,4516.1,4516.0,0.0024218]
[1759708426993,0.7528,4516.1,4516.0,0.9927218]
[1759708428403,0.7528,4516.1,4516.0,2.57984048]
[1759708430501,0.7528,4516.1,4516.0,0.9927218]
[1759708431300,1.15129,4516.1,4516.0,0.0024218]
[1759708433400,1.37229,4516.1,4516.0,0.0024218]
[1759708439008,1.15129,4516.1,4516.0,0.0024218]
[1759708439312,1.37229,4516.1,4516.0,0.0024218]
[1759708441710,1.37229,4516.1,4514.7,0.3986]
[1759708441711,0.61569,4514.9,4514.8,1.58711868]
[1759708441904,1.14759,4514.9,4514.8,1.58711868]
[1759708442108,0.749,4514.8,4514.7,5.10511868]
[1759708442403,0.749,4514.8,4514.7,5.54841868]
[1759708442608,0.7515695,4514.8,4514.7,3.9636299]
[1759708445020,0.3173695,4514.8,4514.7,3.9636299]
[1759708445216,0.3173695,4514.8,4514.7,4.1846299]
[1759708445217,0.0025695,4514.8,4514.7,4.1846299]
[1759708445417,0.0025695,4514.8,4514.7,5.77174858]
[1759708445822,0.3173695,4514.8,4514.7,5.77174858]
[1759708446209,0.5344695,4514.8,4514.7,5.77174858]
[1759708447021,0.7515695,4514.8,4514.7,5.77174858]
[1759708447515,0.7515695,4514.8,4514.7,5.77014858]
[1759708449119,0.5344695,4514.8,4514.7,5.77014858]
[1759708450312,0.5344695,4514.8,4514.7,4.1830299]
[1759708450716,0.7515695,4514.8,4514.7,5.77014858]
[1759708450924,0.7515695,4514.8,4514.7,4.1830299]
[1759708451616,0.5344695,4514.8,4514.7,4.1830299]
[1759708453828,0.0025695,4514.8,4514.7,4.1830299]
[1759708456930,0.0025695,4514.8,4514.7,3.9620299]
[1759708457231,0.0025695,4514.8,4514.7,4.1840299]
[1759708458332,0.0025695,4514.8,4514.7,5.77114858]
[1759708461729,0.0025695,4514.8,4514.7,4.1840299]
[1759708465439,0.5717695,4514.8,4514.7,4.1840299]
[1759708465640,0.7929695,4514.8,4514.7,4.1840299]
[1759708467444,0.0025695,4514.8,4514.7,4.1840299]
[1759708468348,0.3440695,4514.8,4514.7,4.1840299]
[1759708469257,0.0025695,4514.8,4514.7,4.1840299]
[1759708473858,0.0025695,4514.8,4514.7,9.1840299]
[1759708477865,0.0025695,4514.8,4514.7,11.16210872]
[1759708479460,0.0025695,4514.8,4514.7,9.1840299]
[1759708482364,0.0025695,4514.8,4514.7,4.1840299]
[1759708499980,0.3312,4515.4,4515.3,0.4461]
[1759708500183,0.5500305,4515.6,4515.5,0.763]
[1759708500385,0.5500305,4515.6,4515.5,0.984]
[1759708500588,0.7767305,4515.6,4515.5,0.984]
[1759708501084,0.77929456,4515.6,4515.5,0.984]
[1759708523718,0.00256406,4515.6,4515.5,1.1161]
[1759708524219,0.00256406,4515.6,4515.5,1.90088774]
[1759708525112,0.5352,4516.4,4516.3,0.7363]
[1759708525313,0.5352,4516.4,4516.3,0.9573]
[1759708526008,0.31928441,4516.4,4516.3,0.9573]
[1759708529321,0.53758441,4516.4,4516.3,0.9573]
[1759708529513,0.76048441,4516.4,4516.3,0.9573]
[1759708539018,0.76048441,4516.4,4516.0,1.91408292]
[1759708539019,0.3208,4516.3,4516.0,1.91408292]
[1759708539219,0.7504,4516.1,4516.0,1.80758292]
[1759708539420,0.7504,4516.1,4516.0,2.02858292]
[1759708539720,0.7504,4516.1,4516.0,2.34988292]
[1759708540123,0.7504,4516.1,4516.0,2.57728292]
[1759708541625,0.5308,4516.1,4516.0,2.57728292]
[1759708546221,0.3208,4516.1,4516.0,2.70988292]
[1759708546428,0.5308,4516.1,4516.0,2.70988292]
[1759708546620,0.5308,4516.1,4516.0,2.57728292]
[1759708546827,0.7504,4516.1,4516.0,2.57728292]
[1759708547327,0.7504,4516.1,4516.0,0.9845]
[1759708547532,0.5308,4516.1,4516.0,0.9845]
[1759708549018,0.53558441,4516.4,4516.3,0.7775]
[1759708549318,0.74698441,4516.4,4516.3,0.9985]
[1759708551231,0.74698441,4516.4,4516.3,0.6629]
[1759708552333,0.74698441,4516.4,4516.3,2.25359268]
[1759708553326,0.74698441,4516.4,4516.3,2.58919268]
[1759708554228,0.74698441,4516.4,4516.3,0.9985]
[1759708559328,0.74698441,4516.4,4516.3,0.6629]
[1759708559531,0.544,4516.0,4515.9,2.55067865]
[1759708559726,1.65598774,4516.0,4515.9,2.43607865]
[1759708559928,1.65598774,4516.0,4515.9,0.4451]
[1759708560132,1.65598774,4516.0,4515.9,1.81541206]
[1759708560732,1.65598774,4516.0,4515.9,0.221]
[1759708561934,1.65598774,4516.0,4515.9,0.4451]
[1759708564434,0.5332,4516.0,4515.9,0.6629]
[1759708564634,0.5332,4516.0,4515.9,0.9985]
[1759708564932,0.7446,4516.0,4515.9,0.9985]
[1759708569240,0.8712,4516.0,4515.9,0.9985]
[1759708574441,0.8712,4516.0,4515.9,1.39701]
[1759708574633,0.8712,4516.0,4515.9,0.9985]
[1759708576541,0.5332,4516.0,4515.9,0.9985]
[1759708577244,0.7446,4516.0,4515.9,0.9985]
[1759708577540,0.7446,4516.0,4515.9,2.59291206]
[1759708578940,0.7446,4516.0,4515.9,0.9985]
[1759708579241,0.7446,4516.0,4515.9,2.59291206]
[1759708581539,0.00238441,4516.4,4516.3,0.7841]
[1759708581744,0.00238441,4516.4,4516.3,1.0051]
[1759708582841,0.44838441,4516.4,4516.3,0.3356]
[1759708583042,1.16134441,4516.4,4516.3,1.0051]
[1759708594953,0.76288441,4516.4,4516.3,1.0051]
[1759708602359,0.76288441,4516.4,4516.3,0.7841]
[1759708602657,0.76288441,4516.4,4516.3,1.0051]
[1759708603257,0.76288441,4516.4,4516.3,0.7841]
[1759708603459,0.76288441,4516.4,4516.3,1.0051]
[1759708604560,0.76288441,4516.4,4516.3,0.7841]
[1759708604858,0.76288441,4516.4,4516.3,1.0051]
[1759708605053,0.31688441,4516.4,4516.3,1.0051]
[1759708605258,0.00238441,4516.4,4516.3,2.59951206]
[1759708606355,0.32558441,4516.4,4516.3,2.59951206]
[1759708607157,0.00238441,4516.4,4516.3,1.0051]
[1759708616974,0.00238441,4516.4,4516.3,0.7841]
[1759708617175,0.00238441,4516.4,4516.3,1.0051]
[1759708629393,0.00238441,4516.4,4516.3,0.7841]
[1759708629596,0.00238441,4516.4,4516.3,1.0051]
[1759708632395,0.3156,4517.0,4516.9,0.7476]
[1759708632592,0.7587,4517.0,4516.9,0.9686]
[1759708632793,0.882,4517.0,4516.9,0.6475]
[1759708633094,0.882,4517.0,4516.9,0.9686]
[1759708633296,0.88451091,4517.0,4516.9,0.9686]
[1759708634092,1.28292091,4517.0,4516.9,0.221]
[1759708635492,0.4431,4516.7,4516.6,5.55886614]
[1759708635691,0.7587,4516.7,4516.6,5.55886614]
[1759708637394,0.7587,4516.7,4516.6,2.35106614]
[1759708637590,0.7587,4516.7,4516.6,0.7573]
[1759708638001,0.7587,4516.7,4516.6,0.9686]
[1759708639197,0.3156,4516.7,4516.6,0.9686]
[1759708639391,0.12581091,4517.0,4516.7,0.3181]
[1759708639596,0.66641091,4517.0,4516.9,0.7519]
[1759708639796,0.54311091,4517.0,4516.9,0.7519]
[1759708640801,0.67251091,4517.0,4516.6,0.221]
[1759708641008,0.7602,4516.7,4516.6,0.9729]
[1759708641807,0.5406,4516.7,4516.6,0.9729]
[1759708643307,0.5406,4516.7,4516.6,0.7519]
[1759708643607,0.5406,4516.7,4516.6,0.9729]
[1759708645610,0.7602,4516.7,4516.6,0.9729]
[1759708650210,0.21661091,4517.0,4516.9,0.2099]
[1759708650407,0.00251091,4517.0,4516.9,0.9729]
[1759708650608,0.21661091,4517.0,4516.9,0.9729]
[1759708650809,0.54311091,4517.0,4516.9,0.9729]
[1759708651410,0.76271091,4517.0,4516.9,0.9729]
[1759708651610,0.88661091,4517.0,4516.9,0.9729]
[1759708653017,0.76271091,4517.0,4516.9,0.9729]
[1759708660929,0.76271091,4517.0,4516.9,0.221]
[1759708660930,0.88821091,4517.0,4516.9,0.221]
[1759708661323,0.88821091,4517.0,4516.9,0.4437]
[1759708661725,0.88821091,4517.0,4516.9,0.221]
[1759708661926,0.84194,4516.7,4516.5,1.81476614]
[1759708662124,0.2214,4516.4,4516.3,1.59376614]
[1759708662328,0.2214,4516.4,4515.6,3.2078]
[1759708662329,1.15937,4516.3,4516.2,1.59376614]
[1759708662528,1.94378165,4516.3,4516.2,1.59376614]
[1759708664925,0.7609,4516.2,4516.1,1.81476614]
[1759708666428,0.7609,4516.2,4516.1,2.03746614]
[1759708666626,0.7609,4516.2,4516.1,2.36106614]
[1759708666932,0.7609,4516.2,4516.1,2.57196614]
[1759708667134,0.7609,4516.2,4516.1,0.9782]
[1759708678842,0.7609,4516.2,4516.1,0.7572]
[1759708679546,0.7609,4516.2,4516.1,0.2227]
[1759708681441,0.4309,4515.8,4515.6,4.80156614]
[1759708681643,0.3248,4515.3,4515.2,1.81476614]
[1759708681841,1.54011165,4515.3,4515.2,0.7428]
[1759708683854,1.54011165,4515.3,4515.2,0.9535]
[1759708685249,0.7557,4515.3,4515.2,0.9535]
[1759708688754,0.7557,4515.3,4515.2,0.7325]